fUST/lending_fUST_20250604
["ID","MTS","AMOUNT","RATE_DAILY","PERIOD"]
[364206938,1749041444658,-506.5,0.0002,2]
[364206940,1749041444669,-440.0,0.0002,2]
[364206942,1749041444679,-1252.63,0.0002,2]
[364206944,1749041444690,-1161.32,0.0002,2]
[364206946,1749041444699,-509.95,0.0002,2]
[364206948,1749041444709,-2227.24,0.0002,2]
[364206950,1749041444719,-1139.31,0.0002,2]
[364206952,1749041444729,-529.26,0.0002,2]
[364206954,1749041444739,-471.06,0.0002,2]
[364206956,1749041444748,-6389.49,0.0002,2]
[364206958,1749041444758,-440.0,0.0002,2]
[364206960,1749041444767,-1246.34,0.0002,2]
[364206962,1749041444777,-2046.27,0.0002,2]
[364206964,1749041444787,-430.0,0.0002,2]
[364206966,1749041444796,-2407.99,0.0002,2]
[364206968,1749041444806,-1786.1,0.00020005,2]
[364206970,1749041444815,-532.96,0.00020005,2]
[364206972,1749041444825,-440.0,0.00020005,2]
[364206974,1749041444834,-580.18,0.00020005,2]
[364206976,1749041444844,-5031.71,0.00020005,2]
[364206978,1749041444853,-534.64,0.00020005,2]
[364206980,1749041444863,-588.49,0.00020005,2]
[364206982,1749041444873,-892.75,0.00020007,2]
[364206984,1749041444882,-2335.72,0.00020007,2]
[364206986,1749041444893,-529.09,0.00020007,2]
[364206988,1749041444902,-1548.39645406,0.00020008,2]
[364206990,1749041444911,-1200.0,0.00020068,2]
[364206992,1749041444921,-1000.0,0.00020138,2]
[364206994,1749041444930,-4401.51327333,0.0002021,2]
[364206996,1749041444940,-250.0,0.00020273,2]
[364206998,1749041444949,-506.5,0.00020273,2]
[364207000,1749041444959,-381.09,0.00020273,2]
[364207002,1749041444968,-1252.63,0.00020273,2]
[364207004,1749041444978,-1161.32,0.00020273,2]
[364207006,1749041444987,-509.95,0.00020273,2]
[364207008,1749041444996,-2227.24,0.00020273,2]
[364207010,1749041445006,-1139.31,0.00020273,2]
[364207012,1749041445015,-529.26,0.00020273,2]
[364207014,1749041445025,-471.06,0.00020273,2]
[364207016,1749041445034,-6389.49,0.00020273,2]
[364207018,1749041445044,-178.19,0.00020273,2]
[364207020,1749041445054,-1246.34,0.00020273,2]
[364207022,1749041445064,-2046.27,0.00020273,2]
[364207024,1749041445074,-2407.99,0.00020273,2]
[364207026,1749041445083,-166.0,0.00020274,2]
[364207028,1749041445093,-1786.1,0.00020279,2]
[364207030,1749041445103,-532.96,0.00020279,2]
[364207032,1749041445113,-495.72,0.00020279,2]
[364207034,1749041445122,-580.18,0.00020279,2]
[364207036,1749041445132,-5031.71,0.00020279,2]
[364207038,1749041445141,-534.64,0.00020279,2]
[364207040,1749041445151,-588.49,0.00020279,2]
[364207042,1749041445160,-892.75,0.00020281,2]
[364207044,1749041445170,-2335.72,0.00020281,2]
[364207046,1749041445180,-529.09,0.00020281,2]
[364207048,1749041445189,-12672.94222187,0.0002032,3]
[364207050,1749041445199,-212.90465545,0.0002032,3]
[364207053,1749041445208,-842.5625,0.0002032,3]
[364207056,1749041445218,-314.98208564,0.0002032,3]
[364207058,1749041445227,-151.0,0.000205,4]
[364207060,1749041445236,-155.21130184,0.000205,2]
[364207062,1749041445245,-500.0,0.00020547,2]
[364207064,1749041445254,-506.5,0.00020547,2]
[364207066,1749041445264,-1252.63,0.00020547,2]
[364207068,1749041445273,-1161.32,0.00020547,2]
[364207070,1749041445282,-509.95,0.00020547,2]
[364207072,1749041445292,-2227.24,0.00020547,2]
[364207074,1749041445302,-1139.31,0.00020547,2]
[364207076,1749041445311,-529.26,0.00020547,2]
[364207078,1749041445321,-471.06,0.00020547,2]
[364207090,1749041445425,-6389.49,0.00020547,2]
[364207092,1749041445435,-1246.34,0.00020547,2]
[364207094,1749041445446,-2046.27,0.00020547,2]
[364207096,1749041445455,-2407.99,0.00020547,2]
[364207098,1749041445464,-1786.1,0.00020553,2]
[364207100,1749041445474,-532.96,0.00020553,2]
[364207102,1749041445483,-580.18,0.00020553,2]
[364207104,1749041445493,-5031.71,0.00020553,2]
[364207106,1749041445503,-534.64,0.00020553,2]
[364207108,1749041445512,-588.49,0.00020553,2]
[364207110,1749041445522,-892.75,0.00020555,2]
[364207112,1749041445532,-2335.72,0.00020555,2]
[364207114,1749041445542,-151.0,0.00020555,2]
[364207116,1749041445552,-151.0,0.00020555,2]
[364207118,1749041445562,-151.0,0.00020555,2]
[364207120,1749041445575,-151.0,0.00020555,2]
[364207122,1749041445585,-529.09,0.00020555,2]
[364207124,1749041445595,-151.0,0.00020555,2]
[364207126,1749041445604,-1695.39,0.000206,2]
[364207128,1749041445615,-684.48,0.000206,2]
[364207130,1749041445624,-47430.28,0.000206,2]
[364207133,1749041445634,-151.0,0.000206,2]
[364207135,1749041445644,-186.815414,0.000206,2]
[364207137,1749041445653,-190.08815,0.000206,2]
[364207139,1749041445663,-186.815414,0.000206,2]
[364207141,1749041445672,-343.955582,0.000206,2]
[364207143,1749041445682,-343.955582,0.000206,2]
[364207145,1749041445692,-151.0,0.000206,2]
[364207146,1749041445702,-151.0,0.000206,2]
[364207149,1749041445711,-151.0,0.000206,2]
[364207151,1749041445721,-151.0,0.000206,2]
[364207153,1749041445731,-197.294282,0.000206,2]
[364207154,1749041445740,-151.0,0.00020631,2]
[364207156,1749041445749,-151.0,0.00020631,2]
[364207158,1749041445759,-151.0,0.00020658,2]
[364207160,1749041445768,-151.0,0.00020658,2]
[364207162,1749041445778,-151.0,0.00020686,2]
[364207164,1749041445787,-151.0,0.00020686,2]
[364207166,1749041445797,-1000.0,0.00020686,2]
[364207168,1749041445807,-151.0,0.00020713,2]
[364207170,1749041445817,-151.0,0.00020713,2]
[364207172,1749041445827,-151.0,0.00020741,2]
[364207175,1749041445837,-151.0,0.00020741,2]
[364207176,1749041445847,-203.86515256,0.00020767,2]
[364207179,1749041445857,-245.0,0.00020768,2]
[364207181,1749041445867,-167.47185108,0.00020768,2]
[364207183,1749041445878,-506.5,0.00020821,2]
[364207185,1749041445888,-1252.63,0.00020821,2]
[364207186,1749041445899,-1161.32,0.00020821,2]
[364207189,1749041445909,-509.95,0.00020821,2]
[364207191,1749041445919,-2227.24,0.00020821,2]
[364207193,1749041445929,-1139.31,0.00020821,2]
[364207194,1749041445939,-529.26,0.00020821,2]
[364207197,1749041445950,-471.06,0.00020821,2]
[364207199,1749041445959,-6389.49,0.00020821,2]
[364207201,1749041445968,-1246.34,0.00020821,2]
[364207203,1749041445978,-2046.27,0.00020821,2]
[364207205,1749041445987,-2407.99,0.00020821,2]
[364207207,1749041445996,-1786.1,0.00020827,2]
[364207209,1749041446006,-532.96,0.00020827,2]
[364207211,1749041446015,-580.18,0.00020827,2]
[364207213,1749041446024,-5031.71,0.00020827,2]
[364207215,1749041446033,-534.64,0.00020827,2]
[364207217,1749041446042,-588.49,0.00020827,2]
[364207219,1749041446051,-892.75,0.00020829,2]
[364207221,1749041446061,-2335.72,0.00020829,2]
[364207223,1749041446070,-529.09,0.00020829,2]
[364207225,1749041446079,-500.6663336,0.00020907,2]
[364207227,1749041446089,-500.0,0.00020911,2]
[364207229,1749041446098,-500.0,0.00020913,2]
[364207231,1749041446108,-500.0,0.00020913,2]
[364207233,1749041446117,-500.50520965,0.00020913,2]
[364207235,1749041446126,-500.0,0.00020913,2]
[364207237,1749041446136,-501.11265055,0.00020913,2]
[364207239,1749041446145,-500.0,0.00020913,2]
[364207241,1749041446155,-500.0,0.0002092,2]
[364207243,1749041446165,-500.0,0.0002092,2]
[364207244,1749041446175,-500.0,0.00020956,2]
[364207246,1749041446185,-207.4,0.00020966,2]
[364207249,1749041446195,-256.12305451,0.00020966,2]
[364207251,1749041446205,-1383.29918312,0.00020966,2]
[364207253,1749041446215,-500.0,0.00020966,2]
[364207255,1749041446224,-500.0,0.00020966,2]
[364207257,1749041446233,-500.0,0.00020966,2]
[364207259,1749041446243,-500.0,0.00020966,2]
[364207283,1749041446459,-500.0,0.00020966,2]
[364207285,1749041446475,-500.0,0.00020966,2]
[364207287,1749041446503,-500.0,0.00020966,2]
[364207289,1749041446513,-500.0,0.00020966,2]
[364207291,1749041446522,-500.0,0.00020966,2]
[364207293,1749041446532,-500.0,0.00020966,2]
[364207295,1749041446542,-500.0,0.00020966,2]
[364207297,1749041446552,-500.0,0.00020966,2]
[364207299,1749041446562,-5000.0,0.00020966,2]
[364207301,1749041446575,-500.0,0.00020966,2]
[364207303,1749041446584,-500.0,0.00020966,2]
[364207305,1749041446594,-500.0,0.00020966,2]
[364207307,1749041446604,-500.0,0.00020972,2]
[364207309,1749041446615,-500.0,0.00020972,2]
[364207311,1749041446624,-151.0,0.00021,4]
[364207313,1749041446633,-500.0,0.00021045,2]
[364207315,1749041446644,-503.81646108,0.00021045,2]
[364207317,1749041446654,-500.0,0.00021045,2]
[364207319,1749041446663,-575.49483425,0.00021045,2]
[364207321,1749041446673,-500.0,0.00021045,2]
[364207323,1749041446683,-500.0,0.00021045,2]
[364207325,1749041446693,-160.3024375,0.00021045,2]
[364207327,1749041446703,-500.0,0.00021076,2]
[364207329,1749041446713,-500.0,0.00021076,2]
[364207331,1749041446722,-500.0,0.00021082,2]
[364207333,1749041446731,-421.21542315,0.00021082,2]
[364207335,1749041446741,-500.0,0.00021082,2]
[364207337,1749041446751,-500.0,0.00021082,2]
[364207339,1749041446760,-500.0,0.00021082,2]
[364207342,1749041446770,-500.0,0.00021082,2]
[364207344,1749041446779,-500.0,0.00021082,2]
[364207346,1749041446789,-600.0,0.00021082,2]
[364207348,1749041446798,-500.0,0.00021082,2]
[364207350,1749041446807,-500.0,0.00021082,2]
[364207352,1749041446817,-500.0,0.00021082,2]
[364207354,1749041446827,-500.0,0.00021082,2]
[364207356,1749041446836,-500.0,0.00021082,2]
[364207358,1749041446846,-500.0,0.00021082,2]
[364207360,1749041446855,-500.0,0.00021082,2]
[364207362,1749041446865,-621.09360266,0.00021082,2]
[364207364,1749041446875,-500.0,0.00021082,2]
[364207366,1749041446884,-182.2,0.00021095,3]
[364207368,1749041446893,-506.5,0.00021095,2]
[364207370,1749041446903,-151.0,0.00021095,2]
[364207372,1749041446913,-151.0,0.00021095,2]
[364207374,1749041446924,-1252.63,0.00021095,2]
[364207376,1749041446934,-1161.32,0.00021095,2]
[364207378,1749041446943,-509.95,0.00021095,2]
[364207380,1749041446953,-2227.24,0.00021095,2]
[364207382,1749041446963,-1139.31,0.00021095,2]
[364207384,1749041446972,-529.26,0.00021095,2]
[364207386,1749041446982,-471.06,0.00021095,2]
[364207388,1749041446991,-6389.49,0.00021095,2]
[364207390,1749041447000,-1246.34,0.00021095,2]
[364207392,1749041447009,-2046.27,0.00021095,2]
[364207394,1749041447019,-2407.99,0.00021095,2]
[364207396,1749041447028,-1786.1,0.00021101,2]
[364207398,1749041447038,-532.96,0.00021101,2]
[364207400,1749041447048,-580.18,0.00021101,2]
[364207402,1749041447057,-5031.71,0.00021101,2]
[364207404,1749041447067,-534.64,0.00021101,2]
[364207406,1749041447076,-588.49,0.00021101,2]
[364207408,1749041447085,-892.75,0.00021103,2]
[364207410,1749041447095,-2335.72,0.00021103,2]
[364207412,1749041447104,-529.09,0.00021103,2]
[364207414,1749041447113,-354.56540062,0.00021137,2]
[364207416,1749041447124,-1200.0,0.00021164,2]
[364207418,1749041447132,-800.0,0.00021257,2]
[364207420,1749041447141,-506.5,0.00021369,2]
[364207422,1749041447150,-1252.63,0.00021369,2]
[364207424,1749041447159,-1161.32,0.00021369,2]
[364207426,1749041447169,-509.95,0.00021369,2]
[364207428,1749041447178,-2227.24,0.00021369,2]
[364207430,1749041447187,-1139.31,0.00021369,2]
[364207432,1749041447196,-529.26,0.00021369,2]
[364207434,1749041447205,-471.06,0.00021369,2]
[364207436,1749041447214,-6389.49,0.00021369,2]
[364207438,1749041447223,-1246.34,0.00021369,2]
[364207440,1749041447233,-2046.27,0.00021369,2]
[364207442,1749041447242,-2407.99,0.00021369,2]
[364207444,1749041447252,-1786.1,0.00021375,2]
[364207446,1749041447262,-532.96,0.00021375,2]
[364207448,1749041447272,-580.18,0.00021375,2]
[364207450,1749041447281,-5031.71,0.00021375,2]
[364207452,1749041447291,-534.64,0.00021375,2]
[364207454,1749041447301,-588.49,0.00021375,2]
[364207456,1749041447310,-892.75,0.00021377,2]
[364207458,1749041447319,-2335.72,0.00021377,2]
[364207460,1749041447329,-529.09,0.00021377,2]
[364207462,1749041447339,-1000.0,0.00021459,2]
[364207464,1749041447349,-1000.0,0.0002146,2]
[364207466,1749041447359,-1000.0,0.0002146,2]
[364207468,1749041447368,-1000.0,0.0002146,2]
[364207470,1749041447379,-509.59323327,0.0002146,2]
[364207472,1749041447389,-1006.65956259,0.00021468,2]
[364207474,1749041447399,-1000.0,0.00021468,2]
[364207476,1749041447408,-151.0,0.000215,4]
[364207478,1749041447417,-1000.0,0.00021504,2]
[364207480,1749041447428,-5000.0,0.00021514,2]
[364207482,1749041447438,-372319.78341,0.00021519,2]
[364207484,1749041447447,-1000.0,0.0002152,2]
[364207486,1749041447457,-1000.0,0.0002152,2]
[364207488,1749041447466,-1000.0,0.00021593,2]
[364207490,1749041447475,-1000.0,0.00021593,2]
[364207492,1749041447485,-1000.0,0.00021593,2]
[364207494,1749041447494,-152.856026,0.00021624,2]
[364207496,1749041447504,-158.26813,0.00021624,2]
[364207498,1749041447513,-152.062489,0.00021624,2]
[364207500,1749041447522,-154.059257,0.00021624,2]
[364207502,1749041447532,-151.0,0.00021624,2]
[364207504,1749041447541,-471.23588442,0.00021624,2]
[364207506,1749041447550,-1000.0,0.00021624,2]
[364207508,1749041447561,-1000.0,0.0002163,2]
[364207510,1749041447572,-1000.0,0.0002163,2]
[364207512,1749041447583,-500.0,0.0002163,2]
[364207514,1749041447593,-1000.0,0.0002163,2]
[364207517,1749041447603,-504.31260326,0.0002163,2]
[364207519,1749041447612,-1000.0,0.0002163,2]
[364207521,1749041447623,-506.5,0.00021643,2]
[364207523,1749041447632,-1252.63,0.00021643,2]
[364207525,1749041447642,-1161.32,0.00021643,2]
[364207526,1749041447652,-509.95,0.00021643,2]
[364207529,1749041447662,-2227.24,0.00021643,2]
[364207530,1749041447672,-1139.31,0.00021643,2]
[364207533,1749041447682,-529.26,0.00021643,2]
[364207535,1749041447692,-151.0,0.00021643,2]
[364207537,1749041447701,-471.06,0.00021643,2]
[364207538,1749041447710,-6389.49,0.00021643,2]
[364207540,1749041447719,-1246.34,0.00021643,2]
[364207542,1749041447729,-2046.27,0.00021643,2]
[364207544,1749041447740,-2407.99,0.00021643,2]
[364207546,1749041447750,-1786.1,0.00021649,2]
[364207549,1749041447760,-532.96,0.00021649,2]
[364207551,1749041447770,-580.18,0.00021649,2]
[364207552,1749041447779,-5031.71,0.00021649,2]
[364207555,1749041447789,-534.64,0.00021649,2]
[364207557,1749041447799,-588.49,0.00021649,2]
[364207558,1749041447809,-289.552662,0.0002165,2]
[364207561,1749041447819,-289.552662,0.0002165,2]
[364207562,1749041447828,-235.94716,0.0002165,2]
[364207565,1749041447838,-235.94716,0.0002165,2]
[364207567,1749041447847,-151.0,0.0002165,2]
[364207568,1749041447856,-151.0,0.0002165,2]
[364207571,1749041447866,-151.0,0.0002165,2]
[364207573,1749041447876,-151.0,0.0002165,2]
[364207575,1749041447886,-892.75,0.00021651,2]
[364207576,1749041447895,-2335.72,0.00021651,2]
[364207587,1749041447994,-529.09,0.00021651,2]
[364207589,1749041448005,-974.114,0.00021703,2]
[364207591,1749041448015,-708.0,0.00021703,2]
[364207593,1749041448025,-2226.0,0.00021703,2]
[364207595,1749041448034,-405.0,0.00021703,2]
[364207597,1749041448044,-684.48,0.000218,2]
[364207599,1749041448053,-47430.28,0.000218,2]
[364207601,1749041448063,-226.185763,0.000218,2]
[364207603,1749041448073,-186.815414,0.000218,2]
[364207605,1749041448082,-186.815414,0.000218,2]
[364207607,1749041448091,-343.955582,0.000218,2]
[364207609,1749041448101,-343.955582,0.000218,2]
[364207611,1749041448111,-151.0,0.000218,2]
[364207613,1749041448120,-151.0,0.000218,2]
[364207615,1749041448129,-220.554782,0.000218,2]
[364207617,1749041448141,-203.86515256,0.00021874,2]
[364207619,1749041448151,-151.0,0.000219,3]
[364207621,1749041448161,-1695.39,0.000219,2]
[364207623,1749041448171,-506.5,0.00021917,2]
[364207625,1749041448181,-1252.63,0.00021917,2]
[364207627,1749041448191,-1161.32,0.00021917,2]
[364207629,1749041448201,-509.95,0.00021917,2]
[364207631,1749041448211,-2227.24,0.00021917,2]
[364207633,1749041448220,-1139.31,0.00021917,2]
[364207635,1749041448229,-529.26,0.00021917,2]
[364207637,1749041448239,-471.06,0.00021917,2]
[364207639,1749041448249,-6389.49,0.00021917,2]
[364207641,1749041448259,-1246.34,0.00021917,2]
[364207643,1749041448271,-2046.27,0.00021917,2]
[364207645,1749041448281,-2407.99,0.00021917,2]
[364207647,1749041448291,-151.0,0.00021923,7]
[364207649,1749041448301,-151.0,0.00021923,7]
[364207651,1749041448310,-151.0,0.00021923,7]
[364207653,1749041448319,-151.0,0.00021923,7]
[364207655,1749041448329,-151.0,0.00021923,7]
[364207656,1749041448338,-151.0,0.00021923,7]
[364207658,1749041448348,-535.64223,0.00021923,7]
[364207660,1749041448357,-535.64223,0.00021923,7]
[364207662,1749041448367,-381.709095,0.00021923,7]
[364207664,1749041448377,-381.709095,0.00021923,7]
[364207666,1749041448387,-151.0,0.00021923,7]
[364207668,1749041448397,-151.0,0.00021923,7]
[364207670,1749041448407,-158.261927,0.00021923,7]
[364207673,1749041448418,-158.261927,0.00021923,7]
[364207675,1749041448428,-1786.1,0.00021923,2]
[364207676,1749041448438,-532.96,0.00021923,2]
[364207678,1749041448448,-580.18,0.00021923,2]
[364207680,1749041448457,-5031.71,0.00021923,2]
[364207682,1749041448467,-534.64,0.00021923,2]
[364207684,1749041448476,-588.49,0.00021923,2]
[364207686,1749041448486,-892.75,0.00021925,2]
[364207688,1749041448496,-2335.72,0.00021925,2]
[364207690,1749041448506,-529.09,0.00021925,2]
[364207692,1749041448515,-94161.6374995,0.00022,7]
[364207695,1749041448611,-528.78757581,0.00022,7]
[364207696,1749041448623,-501.87708855,0.00022,7]
[364207697,1749041448635,-9584.81578443,0.00022,7]
[364207700,1749041448692,-353.43177733,0.00016438,2]
[364207702,1749041448702,-2827.30061498,0.00020762,3]
[364207704,1749041448719,-984.84,0.00020762,3]
[364207715,1749041448817,-270.51528239,0.00016438,2]
[364207723,1749041448889,-169.48471761,0.00016438,2]
[364207725,1749041448900,-440.0,0.00016712,2]
[364207727,1749041448910,-155.0,0.00018355,2]
[364207729,1749041448921,-589.37265835,0.00020762,3]
[364207731,1749041448931,-4401.51327333,0.00021038,4]
[364207733,1749041448939,-4401.51327333,0.00021314,5]
[364207735,1749041448950,-826.10851351,0.0002159,5]
[364207738,1749041448961,-3575.40475982,0.0002159,5]
[364207739,1749041448970,-4401.51327333,0.00021866,6]
[364207741,1749041448979,-39928.99902785,0.00022,7]
[364207750,1749041449052,-440.0,0.00016438,2]
[364207752,1749041449062,-440.0,0.00016986,2]
[364207754,1749041449071,-440.0,0.0001726,2]
[364207756,1749041449080,-390.31268541,0.00017534,2]
[364207758,1749041449089,-167.2222613,0.00021269,2]
[364207760,1749041449100,-1276.6817347,0.00022,7]
[364207762,1749041449113,-14670.25128916,0.00022,7]
[364207764,1749041449123,-151.0,0.00022,7]
[364207766,1749041449132,-151.0,0.00022,7]
[364207768,1749041449142,-151.0,0.00022,7]
[364207770,1749041449153,-221.755081,0.00022,7]
[364207772,1749041449163,-181.217519,0.00022,7]
[364207774,1749041449175,-181.217519,0.00022,7]
[364207776,1749041449186,-151.0,0.00022,7]
[364207778,1749041449195,-151.0,0.00022,7]
[364207780,1749041449206,-289.552662,0.00022,7]
[364207782,1749041449215,-289.552662,0.00022,7]
[364207784,1749041449225,-235.94716,0.00022,7]
[364207786,1749041449235,-235.94716,0.00022,7]
[364207788,1749041449245,-151.0,0.00022,7]
[364207790,1749041449254,-151.0,0.00022,2]
[364207792,1749041449264,-151.0,0.00022,7]
[364207794,1749041449274,-151.0,0.00022,7]
[364207796,1749041449284,-151.0,0.00022,7]
[364207798,1749041449293,-155.370389,0.00022,7]
[364207800,1749041449304,-12672.94222187,0.00022,7]
[364207802,1749041449313,-151.0,0.00022,7]
[364207804,1749041449323,-212.90465545,0.00022,7]
[364207806,1749041449333,-842.5625,0.00022,7]
[364207808,1749041449342,-314.98208564,0.00022,7]
[364207810,1749041449352,-1500.0,0.00022007,2]
[364207812,1749041449364,-1500.0,0.00022008,2]
[364207814,1749041449375,-434.79335876,0.00022008,2]
[364207816,1749041449385,-691.47194232,0.00022008,2]
[364207818,1749041449396,-1547.65294783,0.00022016,2]
[364207820,1749041449407,-156.7122786,0.00022051,2]
[364207822,1749041449421,-4944.81258529,0.00022062,2]
[364207824,1749041449446,-440.0,0.00016712,2]
[364207826,1749041449461,-55.18741471,0.00022062,2]
[364207828,1749041449472,-503.14132388,0.00022068,2]
[364207830,1749041449483,-1500.0,0.00022068,2]
[364207832,1749041449493,-651.60954587,0.00022141,2]
[364207834,1749041449504,-1500.0,0.00022141,2]
[364207836,1749041449515,-1000.0,0.00022141,2]
[364207838,1749041449526,-4401.51327333,0.00022141,6]
[364207840,1749041449538,-1471.51102347,0.00022172,2]
[364207843,1749041449551,-28.48897653,0.00022172,2]
[364207844,1749041449565,-1000.0,0.00022178,2]
[364207847,1749041449576,-501.06523105,0.00022178,2]
[364207848,1749041449587,-1573.35073581,0.00022178,2]
[364207851,1749041449598,-829.57155879,0.00022178,2]
[364207852,1749041449609,-506.5,0.00022191,2]
[364207854,1749041449621,-186.815414,0.00022191,7]
[364207856,1749041449632,-186.815414,0.00022191,7]
[364207858,1749041449645,-1161.32,0.00022191,2]
[364207860,1749041449656,-343.955582,0.00022191,7]
[364207862,1749041449666,-343.955582,0.00022191,7]
[364207864,1749041449684,-509.95,0.00022191,2]
[364207867,1749041449696,-2227.24,0.00022191,2]
[364207869,1749041449708,-1139.31,0.00022191,2]
[364207870,1749041449719,-151.0,0.00022191,7]
[364207872,1749041449731,-151.0,0.00022191,7]
[364207874,1749041449741,-529.26,0.00022191,2]
[364207876,1749041449753,-471.06,0.00022191,2]
[364207878,1749041449763,-6389.49,0.00022191,2]
[364207880,1749041449773,-867.04730014,0.00022191,2]
[364213070,1749041705377,1475.85,0.00025,120]
[364213149,1749041790633,155.0,0.00025,30]
[364213236,1749041960990,229.45591648,0.00025,30]
[364213251,1749042234263,1492.0,0.00025,120]
[364213254,1749042382413,7038.03188354,0.000245,30]
[364213282,1749042465375,168.151219,0.00013699,2]
[364213286,1749042487912,423.69433488,0.00025,30]
[364213307,1749042575860,212.90465545,0.00025,30]
[364213308,1749042594983,2000.0,0.00025,30]
[364213309,1749042617205,2000.0,0.00025,30]
[364213310,1749042625814,2000.0,0.00025,30]
[364213349,1749042632026,-152.89886442,0.00016338,2]
[364213350,1749042632036,-217.10844023,0.00016437,2]
[364213351,1749042632046,-300.0,0.00016437,2]
[364213352,1749042632056,-300.0,0.00016437,2]
[364213353,1749042632065,-1200.0,0.00016437,2]
[364213354,1749042632077,-430.0,0.00016438,2]
[364213355,1749042632088,-440.0,0.00016438,2]
[364213356,1749042632098,-430.86821487,0.00016438,2]
[364213357,1749042632107,-440.0,0.00016438,2]
[364213358,1749042632117,-440.0,0.00016438,2]
[364213359,1749042632126,-440.0,0.00016438,2]
[364213360,1749042632136,-204.58243388,0.00016438,2]
[364213361,1749042632146,-430.0,0.00016438,2]
[364213362,1749042632159,-430.0,0.00016438,2]
[364213363,1749042632174,-430.0,0.00016438,2]
[364213364,1749042632184,-430.0,0.00016438,2]
[364213365,1749042632194,-538.31024321,0.00016438,2]
[364213366,1749042632203,-440.0,0.00016438,2]
[364213367,1749042632213,-440.0,0.00016438,2]
[364213368,1749042632222,-165.5533465,0.00016438,2]
[364213369,1749042632235,-274.4466535,0.00016438,2]
[364213370,1749042632245,-627.42,0.00016438,2]
[364213371,1749042632254,-185.74958061,0.00016438,2]
[364213372,1749042632264,-198.04086735,0.00016438,2]
[364213373,1749042632274,-440.0,0.00016438,2]
[364213374,1749042632284,-440.0,0.00016438,2]
[364213375,1749042632294,-436.99421621,0.00016438,2]
[364213376,1749042632304,-440.0,0.00016438,2]
[364213377,1749042632314,-430.0,0.00016438,2]
[364213378,1749042632324,-378.31433823,0.00016438,2]
[364213379,1749042632336,-51.68566177,0.00016438,2]
[364213380,1749042632345,-440.0,0.00016438,2]
[364213381,1749042632355,-440.0,0.00016438,2]
[364213382,1749042632365,-296.49198985,0.00016438,2]
[364213407,1749042637880,-143.50801015,0.00016438,2]
[364213422,1749042638073,-440.0,0.00016438,2]
[364213423,1749042638087,-325.37708043,0.00016438,2]
[364213424,1749042638097,-440.0,0.00016438,2]
[364213425,1749042638107,-440.0,0.00016438,2]
[364213426,1749042638117,-440.0,0.00016438,2]
[364213427,1749042638126,-440.0,0.00016438,2]
[364213428,1749042638136,-440.0,0.00016438,2]
[364213429,1749042638146,-440.0,0.00016438,2]
[364213430,1749042638156,-518.5210037,0.00016438,2]
[364213431,1749042638166,-440.0,0.00016438,2]
[364213432,1749042638175,-440.0,0.00016438,2]
[364213433,1749042638185,-178.32876422,0.00016438,2]
[364213434,1749042638195,-164.69206621,0.00016438,2]
[364213435,1749042638204,-440.0,0.00016438,2]
[364213436,1749042638214,-440.0,0.00016438,2]